[Event "Titled Tuesday Blitz December 13 Early 2022"]
[White "Cruz, William Ferreira Da"]
[Black "Harsh Suresh"]
[WhiteFideId "2118050"]
[BlackFideId "45018464"]
[WhiteElo "2223"]
[BlackElo "2227"]
[Result "1/2-1/2"]
[Round "09"]
[TimeControl "180+1"]
[Date "2022.12.14"]
[WhiteClock "0:00:08"]
[BlackClock "0:00:05"]

1. d4 {[%clk 0:02:51]}  g6 {[%clk 0:02:57]} 2. c4 {[%clk 0:02:51]}  Bg7 {[%clk 0:02:58]} 3. Nc3 {[%clk 0:02:51]}  d6 {[%clk 0:02:53]} 4. e4 {[%clk 0:02:51]}  e5 {[%clk 0:02:43]} 5. Be3 {[%clk 0:02:51]}  Nc6 {[%clk 0:02:42]} 6. Nge2 {[%clk 0:02:50]}  exd4 {[%clk 0:02:35]} 7. Nxd4 {[%clk 0:02:49]}  Nge7 {[%clk 0:02:36]} 8. Be2 {[%clk 0:02:47]}  O-O {[%clk 0:02:35]} 9. O-O {[%clk 0:02:46]}  a6 {[%clk 0:02:33]} 10. Qd2 {[%clk 0:02:45]}  Nxd4 {[%clk 0:02:33]} 11. Bxd4 {[%clk 0:02:44]}  Bxd4 {[%clk 0:02:34]} 12. Qxd4 {[%clk 0:02:44]}  Nc6 {[%clk 0:02:35]} 13. Qd2 {[%clk 0:02:42]}  Be6 {[%clk 0:02:35]} 14. f4 {[%clk 0:02:35]}  f5 {[%clk 0:02:32]} 15. exf5 {[%clk 0:02:26]}  Bxf5 {[%clk 0:02:33]} 16. Bf3 {[%clk 0:02:25]}  Qf6 {[%clk 0:02:31]} 17. Nd5 {[%clk 0:02:17]}  Qg7 {[%clk 0:02:29]} 18. Rae1 {[%clk 0:02:12]}  Rae8 {[%clk 0:02:28]} 19. Ne3 {[%clk 0:02:00]}  Bc8 {[%clk 0:02:23]} 20. Bd5+ {[%clk 0:01:56]}  Kh8 {[%clk 0:02:22]} 21. b3 {[%clk 0:01:53]}  Qd4 {[%clk 0:02:15]} 22. Qxd4+ {[%clk 0:01:44]}  Nxd4 {[%clk 0:02:15]} 23. g3 {[%clk 0:01:35]}  Re7 {[%clk 0:02:06]} 24. Ng2 {[%clk 0:01:30]}  Rfe8 {[%clk 0:02:04]} 25. Rxe7 {[%clk 0:01:28]}  Rxe7 {[%clk 0:02:05]} 26. Re1 {[%clk 0:01:26]}  Rxe1+ {[%clk 0:02:03]} 27. Nxe1 {[%clk 0:01:26]}  c6 {[%clk 0:02:04]} 28. Bg2 {[%clk 0:01:23]}  Bf5 {[%clk 0:02:02]} 29. b4 {[%clk 0:01:07]}  Bb1 {[%clk 0:01:53]} 30. a4 {[%clk 0:01:06]}  Ba2 {[%clk 0:01:51]} 31. Bf1 {[%clk 0:00:42]}  b6 {[%clk 0:01:33]} 32. c5 {[%clk 0:00:30]}  dxc5 {[%clk 0:01:31]} 33. bxc5 {[%clk 0:00:29]}  b5 {[%clk 0:01:31]} 34. axb5 {[%clk 0:00:26]}  axb5 {[%clk 0:01:30]} 35. Kf2 {[%clk 0:00:27]}  Bd5 {[%clk 0:01:23]} 36. Ke3 {[%clk 0:00:24]}  Nb3 {[%clk 0:01:23]} 37. Nd3 {[%clk 0:00:23]}  Kg7 {[%clk 0:01:18]} 38. Nb4 {[%clk 0:00:20]}  Bh1 {[%clk 0:01:11]} 39. Nd3 {[%clk 0:00:18]}  Kf6 {[%clk 0:01:11]} 40. Bh3 {[%clk 0:00:17]}  Ke7 {[%clk 0:01:08]} 41. f5 {[%clk 0:00:17]}  g5 {[%clk 0:01:05]} 42. f6+ {[%clk 0:00:13]}  Kxf6 {[%clk 0:01:03]} 43. Bd7 {[%clk 0:00:14]}  Ke7 {[%clk 0:01:03]} 44. Bf5 {[%clk 0:00:13]}  h6 {[%clk 0:01:01]} 45. Be4 {[%clk 0:00:12]}  Bxe4 {[%clk 0:01:01]} 46. Kxe4 {[%clk 0:00:13]}  Ke6 {[%clk 0:01:01]} 47. h4 {[%clk 0:00:13]}  Kf6 {[%clk 0:00:59]} 48. h5 {[%clk 0:00:12]}  Ke6 {[%clk 0:00:59]} 49. g4 {[%clk 0:00:12]}  Kf6 {[%clk 0:00:59]} 50. Ke3 {[%clk 0:00:11]}  Ke6 {[%clk 0:00:41]} 51. Ke4 {[%clk 0:00:11]}  Nd2+ {[%clk 0:00:41]} 52. Ke3 {[%clk 0:00:11]}  Nc4+ {[%clk 0:00:40]} 53. Kd4 {[%clk 0:00:10]}  Na5 {[%clk 0:00:40]} 54. Nb4 {[%clk 0:00:09]}  Nb3+ {[%clk 0:00:33]} 55. Ke3 {[%clk 0:00:10]}  Nxc5 {[%clk 0:00:24]} 56. Nxc6 {[%clk 0:00:10]}  Kf6 {[%clk 0:00:24]} 57. Nd4 {[%clk 0:00:10]}  b4 {[%clk 0:00:24]} 58. Nf5 {[%clk 0:00:10]}  b3 {[%clk 0:00:22]} 59. Kd2 {[%clk 0:00:09]}  Ne6 {[%clk 0:00:12]} 60. Kc3 {[%clk 0:00:08]}  b2 {[%clk 0:00:04]} 61. Kxb2 {[%clk 0:00:07]}  Ke5 {[%clk 0:00:03]} 62. Nxh6 {[%clk 0:00:07]}  Kf4 {[%clk 0:00:03]} 63. Nf7 {[%clk 0:00:07]}  Kxg4 {[%clk 0:00:03]} 64. h6 {[%clk 0:00:08]}  Nf8 {[%clk 0:00:04]} 65. Nxg5 {[%clk 0:00:07]}  Kxg5 {[%clk 0:00:05]} 66. h7 {[%clk 0:00:08]}  Nxh7 {[%clk 0:00:05]} 1/2-1/2


[Site "https://www.chess.com"]

[Event "Titled Tuesday Blitz December 13 Early 2022"]
[White "Csonka, Balazs"]
[Black "Deuer, Marius"]
[WhiteFideId "742910"]
[BlackFideId "16236432"]
[WhiteElo "2404"]
[BlackElo "2226"]
[Result "1-0"]
[Round "09"]
[TimeControl "180+1"]
[Date "2022.12.14"]
[WhiteClock "0:00:08"]
[BlackClock "0:00:03"]

1. e4 {[%clk 0:03:00]}  e5 {[%clk 0:02:56]} 2. Nf3 {[%clk 0:03:00]}  Nc6 {[%clk 0:02:56]} 3. Bb5 {[%clk 0:02:53]}  a6 {[%clk 0:02:53]} 4. Ba4 {[%clk 0:02:52]}  Nf6 {[%clk 0:02:54]} 5. O-O {[%clk 0:02:52]}  Be7 {[%clk 0:02:55]} 6. Re1 {[%clk 0:02:49]}  b5 {[%clk 0:02:55]} 7. Bb3 {[%clk 0:02:49]}  d6 {[%clk 0:02:55]} 8. c3 {[%clk 0:02:47]}  O-O {[%clk 0:02:53]} 9. h3 {[%clk 0:02:38]}  Nb8 {[%clk 0:02:50]} 10. d4 {[%clk 0:02:34]}  Nbd7 {[%clk 0:02:49]} 11. Nbd2 {[%clk 0:02:32]}  Bb7 {[%clk 0:02:43]} 12. Bc2 {[%clk 0:02:28]}  Re8 {[%clk 0:02:32]} 13. Nf1 {[%clk 0:02:27]}  c5 {[%clk 0:01:30]} 14. d5 {[%clk 0:02:17]}  c4 {[%clk 0:01:29]} 15. b4 {[%clk 0:02:11]}  cxb3 {[%clk 0:01:28]} 16. axb3 {[%clk 0:02:12]}  Rc8 {[%clk 0:01:28]} 17. Bd2 {[%clk 0:01:58]}  g6 {[%clk 0:01:26]} 18. Ne3 {[%clk 0:01:38]}  Nc5 {[%clk 0:01:20]} 19. Qb1 {[%clk 0:01:37]}  Qc7 {[%clk 0:01:14]} 20. Rc1 {[%clk 0:01:25]}  Bf8 {[%clk 0:01:10]} 21. c4 {[%clk 0:01:03]}  bxc4 {[%clk 0:01:09]} 22. Nxc4 {[%clk 0:01:04]}  Qb8 {[%clk 0:01:04]} 23. Ba5 {[%clk 0:00:46]}  Bg7 {[%clk 0:00:54]} 24. b4 {[%clk 0:00:39]}  Ncd7 {[%clk 0:00:53]} 25. Ba4 {[%clk 0:00:40]}  Re7 {[%clk 0:00:49]} 26. Nfd2 {[%clk 0:00:35]}  Bh6 {[%clk 0:00:44]} 27. Rc2 {[%clk 0:00:32]}  Nh5 {[%clk 0:00:29]} 28. g3 {[%clk 0:00:28]}  f5 {[%clk 0:00:22]} 29. Ra3 {[%clk 0:00:10]}  Nhf6 {[%clk 0:00:20]} 30. exf5 {[%clk 0:00:05]}  gxf5 {[%clk 0:00:21]} 31. Rc1 {[%clk 0:00:04]}  Bxd5 {[%clk 0:00:18]} 32. Qxf5 {[%clk 0:00:03]}  Bxd2 {[%clk 0:00:18]} 33. Nxd2 {[%clk 0:00:01]}  Rxc1+ {[%clk 0:00:17]} 34. Nf1 {[%clk 0:00:02]}  Bc4 {[%clk 0:00:15]} 35. Qg5+ {[%clk 0:00:02]}  Rg7 {[%clk 0:00:14]} 36. Qxc1 {[%clk 0:00:03]}  Qb7 {[%clk 0:00:13]} 37. Bb3 {[%clk 0:00:03]}  Bxb3 {[%clk 0:00:13]} 38. Rxb3 {[%clk 0:00:04]}  Ne4 {[%clk 0:00:13]} 39. h4 {[%clk 0:00:03]}  d5 {[%clk 0:00:13]} 40. Rd3 {[%clk 0:00:03]}  d4 {[%clk 0:00:12]} 41. Qe1 {[%clk 0:00:02]}  Ndf6 {[%clk 0:00:11]} 42. Rd1 {[%clk 0:00:02]}  Ng4 {[%clk 0:00:10]} 43. f3 {[%clk 0:00:02]}  Ne3 {[%clk 0:00:10]} 44. fxe4 {[%clk 0:00:01]}  Nxf1 {[%clk 0:00:08]} 45. Kxf1 {[%clk 0:00:02]}  Qd7 {[%clk 0:00:07]} 46. Kg2 {[%clk 0:00:02]}  Qg4 {[%clk 0:00:07]} 47. Rd3 {[%clk 0:00:03]}  Rc7 {[%clk 0:00:05]} 48. Qf2 {[%clk 0:00:02]}  Rc1 {[%clk 0:00:04]} 49. Rf3 {[%clk 0:00:03]}  Qxe4 {[%clk 0:00:04]} 50. g4 {[%clk 0:00:02]}  Rc3 {[%clk 0:00:04]} 51. Qg3 {[%clk 0:00:02]}  Rxf3 {[%clk 0:00:04]} 52. Qxf3 {[%clk 0:00:02]}  Qc2+ {[%clk 0:00:05]} 53. Kg3 {[%clk 0:00:03]}  d3 {[%clk 0:00:05]} 54. Qd5+ {[%clk 0:00:01]}  Kf8 {[%clk 0:00:06]} 55. Qd6+ {[%clk 0:00:02]}  Kg8 {[%clk 0:00:05]} 56. Qe6+ {[%clk 0:00:02]}  Kf8 {[%clk 0:00:05]} 57. Qf6+ {[%clk 0:00:02]}  Kg8 {[%clk 0:00:04]} 58. Qg5+ {[%clk 0:00:03]}  Kf8 {[%clk 0:00:04]} 59. Qf5+ {[%clk 0:00:03]}  Kg8 {[%clk 0:00:05]} 60. Bd8 {[%clk 0:00:03]}  e4 {[%clk 0:00:02]} 61. Qg5+ {[%clk 0:00:04]}  Kf8 {[%clk 0:00:03]} 62. Qe7+ {[%clk 0:00:04]}  Kg8 {[%clk 0:00:03]} 63. Qe8+ {[%clk 0:00:05]}  Kg7 {[%clk 0:00:03]} 64. Qe7+ {[%clk 0:00:05]}  Kg8 {[%clk 0:00:04]} 65. Qe6+ {[%clk 0:00:06]}  Kf8 {[%clk 0:00:02]} 66. Be7+ {[%clk 0:00:06]}  Ke8 {[%clk 0:00:02]} 67. Bf6+ {[%clk 0:00:07]}  Kf8 {[%clk 0:00:02]} 68. Qe7+ {[%clk 0:00:07]}  Kg8 {[%clk 0:00:03]} 69. Qe8# {[%clk 0:00:08]} 1-0


[Site "https://www.chess.com"]

[Event "Titled Tuesday Blitz December 13 Early 2022"]
[White "Dias, Joao Batista"]
[Black "Roque Sola, Jose Luis"]
[WhiteFideId "2108240"]
[BlackFideId "5120390"]
[WhiteElo "1898"]
[BlackElo "2117"]
[Result "1-0"]
[Round "09"]
[TimeControl "180+1"]
[Date "2022.12.14"]
[WhiteClock "0:00:53"]
[BlackClock "0:00:03"]

1. e4 {[%clk 0:02:56]}  e6 {[%clk 0:02:59]} 2. d4 {[%clk 0:02:55]}  d5 {[%clk 0:02:56]} 3. Nd2 {[%clk 0:02:54]}  c5 {[%clk 0:02:56]} 4. c3 {[%clk 0:02:54]}  cxd4 {[%clk 0:02:54]} 5. cxd4 {[%clk 0:02:54]}  dxe4 {[%clk 0:02:53]} 6. Nxe4 {[%clk 0:02:53]}  Nf6 {[%clk 0:02:52]} 7. Nxf6+ {[%clk 0:02:53]}  Qxf6 {[%clk 0:02:52]} 8. Be3 {[%clk 0:02:54]}  Bb4+ {[%clk 0:02:44]} 9. Ke2 {[%clk 0:02:50]}  Bd7 {[%clk 0:02:39]} 10. f3 {[%clk 0:02:48]}  O-O {[%clk 0:02:18]} 11. Kf2 {[%clk 0:02:48]}  Bc6 {[%clk 0:02:13]} 12. Bd3 {[%clk 0:02:42]}  Nd7 {[%clk 0:01:49]} 13. Nh3 {[%clk 0:02:42]}  h6 {[%clk 0:01:48]} 14. Rf1 {[%clk 0:02:34]}  Nb6 {[%clk 0:01:38]} 15. a3 {[%clk 0:02:24]}  Bd6 {[%clk 0:01:32]} 16. Kg1 {[%clk 0:02:15]}  Nd5 {[%clk 0:01:29]} 17. Bf2 {[%clk 0:02:15]}  Rfd8 {[%clk 0:01:18]} 18. Be4 {[%clk 0:02:15]}  Nf4 {[%clk 0:01:15]} 19. Nxf4 {[%clk 0:02:12]}  Bxf4 {[%clk 0:01:04]} 20. Bxc6 {[%clk 0:02:11]}  bxc6 {[%clk 0:01:04]} 21. Qc2 {[%clk 0:02:07]}  Rac8 {[%clk 0:00:49]} 22. Rad1 {[%clk 0:02:06]}  Rd5 {[%clk 0:00:48]} 23. b4 {[%clk 0:01:52]}  Rh5 {[%clk 0:00:47]} 24. g3 {[%clk 0:01:50]}  Bb8 {[%clk 0:00:33]} 25. f4 {[%clk 0:01:43]}  a5 {[%clk 0:00:09]} 26. Qe2 {[%clk 0:01:41]}  axb4 {[%clk 0:00:08]} 27. Qxh5 {[%clk 0:01:40]}  bxa3 {[%clk 0:00:08]} 28. Ra1 {[%clk 0:01:38]}  Bd6 {[%clk 0:00:08]} 29. Qa5 {[%clk 0:01:35]}  Qg6 {[%clk 0:00:05]} 30. Qa6 {[%clk 0:01:17]}  Rc7 {[%clk 0:00:04]} 31. Be3 {[%clk 0:00:55]}  Qe4 {[%clk 0:00:03]} 32. Qe2 {[%clk 0:00:53]} 1-0


[Site "https://www.chess.com"]

[Event "Titled Tuesday Blitz December 13 Early 2022"]
[White "Ezat, Mohamed"]
[Black "Ansh M Shah"]
[WhiteFideId "10600906"]
[BlackFideId "25033379"]
[WhiteElo "2388"]
[BlackElo "2084"]
[Result "1-0"]
[Round "09"]
[TimeControl "180+1"]
[Date "2022.12.14"]
[WhiteClock "0:02:22"]
[BlackClock "0:02:31"]

1. d4 {[%clk 0:02:56]}  Nf6 {[%clk 0:02:58]} 2. Nc3 {[%clk 0:02:55]}  e6 {[%clk 0:02:58]} 3. Bg5 {[%clk 0:02:54]}  d5 {[%clk 0:02:59]} 4. e4 {[%clk 0:02:53]}  dxe4 {[%clk 0:02:59]} 5. Nxe4 {[%clk 0:02:53]}  Be7 {[%clk 0:03:00]} 6. Bxf6 {[%clk 0:02:53]}  Bxf6 {[%clk 0:03:01]} 7. Nf3 {[%clk 0:02:52]}  Nd7 {[%clk 0:03:00]} 8. Bd3 {[%clk 0:02:52]}  c5 {[%clk 0:02:51]} 9. dxc5 {[%clk 0:02:39]}  Nxc5 {[%clk 0:02:43]} 10. Nxc5 {[%clk 0:02:34]}  Qa5+ {[%clk 0:02:43]} 11. c3 {[%clk 0:02:33]}  Qxc5 {[%clk 0:02:43]} 12. O-O {[%clk 0:02:31]}  O-O {[%clk 0:02:42]} 13. Qe2 {[%clk 0:02:30]}  b6 {[%clk 0:02:40]} 14. Qe4 {[%clk 0:02:29]}  g6 {[%clk 0:02:32]} 15. Qxa8 {[%clk 0:02:28]}  Ba6 {[%clk 0:02:31]} 16. Qe4 {[%clk 0:02:22]} 1-0


[Site "https://www.chess.com"]

[Event "Titled Tuesday Blitz December 13 Early 2022"]
[White "Fernandez De La Vara, Arnaldo"]
[Black "Urazayev, Arystanbek"]
[WhiteFideId "3518388"]
[BlackFideId "13709810"]
[WhiteElo "2601"]
[BlackElo "2740"]
[Result "0-1"]
[Round "09"]
[TimeControl "180+1"]
[Date "2022.12.14"]
[WhiteClock "0:00:02"]
[BlackClock "0:00:46"]

1. Nf3 {[%clk 0:03:00]}  d5 {[%clk 0:02:59]} 2. g3 {[%clk 0:03:00]}  b6 {[%clk 0:03:00]} 3. Bg2 {[%clk 0:03:00]}  Bb7 {[%clk 0:03:00]} 4. O-O {[%clk 0:03:00]}  Nd7 {[%clk 0:03:00]} 5. b3 {[%clk 0:02:59]}  Ngf6 {[%clk 0:03:01]} 6. Bb2 {[%clk 0:02:59]}  e6 {[%clk 0:03:01]} 7. c4 {[%clk 0:03:00]}  dxc4 {[%clk 0:03:01]} 8. bxc4 {[%clk 0:02:59]}  c5 {[%clk 0:03:02]} 9. Ne5 {[%clk 0:02:58]}  Bxg2 {[%clk 0:03:01]} 10. Kxg2 {[%clk 0:02:58]}  Nxe5 {[%clk 0:03:02]} 11. Bxe5 {[%clk 0:02:59]}  Bd6 {[%clk 0:03:02]} 12. Bxd6 {[%clk 0:02:55]}  Qxd6 {[%clk 0:03:02]} 13. Nc3 {[%clk 0:02:55]}  O-O {[%clk 0:03:00]} 14. d3 {[%clk 0:02:47]}  a6 {[%clk 0:03:00]} 15. a4 {[%clk 0:02:44]}  Nd7 {[%clk 0:02:56]} 16. Qb3 {[%clk 0:02:23]}  Rfb8 {[%clk 0:02:53]} 17. Rfb1 {[%clk 0:02:14]}  h5 {[%clk 0:02:53]} 18. a5 {[%clk 0:02:09]}  h4 {[%clk 0:02:42]} 19. Qa4 {[%clk 0:01:56]}  Ne5 {[%clk 0:02:37]} 20. Ne4 {[%clk 0:01:49]}  Qc7 {[%clk 0:02:37]} 21. axb6 {[%clk 0:01:49]}  Rxb6 {[%clk 0:02:38]} 22. Qa5 {[%clk 0:01:45]}  Rab8 {[%clk 0:02:15]} 23. Rxb6 {[%clk 0:01:44]}  Rxb6 {[%clk 0:02:14]} 24. Rb1 {[%clk 0:01:18]}  Nd7 {[%clk 0:01:59]} 25. Rxb6 {[%clk 0:01:17]}  Nxb6 {[%clk 0:02:00]} 26. Nxc5 {[%clk 0:01:04]}  Qc6+ {[%clk 0:02:00]} 27. f3 {[%clk 0:01:01]}  g6 {[%clk 0:01:23]} 28. Nxa6 {[%clk 0:00:54]}  Nd7 {[%clk 0:01:19]} 29. Nb8 {[%clk 0:00:44]}  Nxb8 {[%clk 0:01:05]} 30. Qd8+ {[%clk 0:00:44]}  Kg7 {[%clk 0:01:06]} 31. Qxb8 {[%clk 0:00:42]}  Qc5 {[%clk 0:01:07]} 32. Qf4 {[%clk 0:00:35]}  h3+ {[%clk 0:01:06]} 33. Kxh3 {[%clk 0:00:30]}  Qf2 {[%clk 0:01:05]} 34. Qe5+ {[%clk 0:00:13]}  Kh7 {[%clk 0:00:55]} 35. Kg4 {[%clk 0:00:03]}  Qxh2 {[%clk 0:00:52]} 36. c5 {[%clk 0:00:01]}  Qh6 {[%clk 0:00:49]} 37. Qg5 {[%clk 0:00:01]}  f5+ {[%clk 0:00:46]} 38. Kf4 {[%clk 0:00:01]}  e5+ {[%clk 0:00:47]} 39. Kxe5 {[%clk 0:00:02]}  Qxg5 {[%clk 0:00:47]} 40. c6 {[%clk 0:00:02]}  Qe7+ {[%clk 0:00:46]} 0-1


[Site "https://www.chess.com"]

[Event "Titled Tuesday Blitz December 13 Early 2022"]
[White "Firouzja, Alireza"]
[Black "Dubov, Daniil"]
[WhiteFideId "12573981"]
[BlackFideId "24126055"]
[WhiteElo "2904"]
[BlackElo "2792"]
[Result "0-1"]
[Round "09"]
[TimeControl "180+1"]
[Date "2022.12.13"]
[WhiteClock "0:00:02"]
[BlackClock "0:00:12"]

1. d4 {[%clk 0:02:54]}  Nf6 {[%clk 0:02:58]} 2. Nf3 {[%clk 0:02:53]}  d5 {[%clk 0:02:58]} 3. c4 {[%clk 0:02:52]}  e6 {[%clk 0:02:58]} 4. Nc3 {[%clk 0:02:49]}  Be7 {[%clk 0:02:58]} 5. Qc2 {[%clk 0:02:41]}  O-O {[%clk 0:02:56]} 6. cxd5 {[%clk 0:02:42]}  exd5 {[%clk 0:02:54]} 7. Bg5 {[%clk 0:02:42]}  Re8 {[%clk 0:02:44]} 8. e3 {[%clk 0:02:40]}  Nbd7 {[%clk 0:02:43]} 9. Bd3 {[%clk 0:02:40]}  Nf8 {[%clk 0:02:42]} 10. h3 {[%clk 0:02:35]}  c6 {[%clk 0:02:41]} 11. Bf4 {[%clk 0:02:32]}  Ne6 {[%clk 0:02:37]} 12. Bh2 {[%clk 0:02:28]}  c5 {[%clk 0:02:31]} 13. O-O {[%clk 0:02:27]}  cxd4 {[%clk 0:02:26]} 14. exd4 {[%clk 0:02:27]}  Bd7 {[%clk 0:02:20]} 15. Rfe1 {[%clk 0:02:27]}  Rc8 {[%clk 0:02:19]} 16. Be5 {[%clk 0:02:18]}  g6 {[%clk 0:02:08]} 17. a3 {[%clk 0:02:17]}  Ng7 {[%clk 0:02:03]} 18. Qb3 {[%clk 0:02:16]}  Bc6 {[%clk 0:02:02]} 19. Re2 {[%clk 0:02:14]}  Nd7 {[%clk 0:01:48]} 20. Bxg7 {[%clk 0:02:09]}  Kxg7 {[%clk 0:01:48]} 21. Nxd5 {[%clk 0:02:09]}  Nc5 {[%clk 0:01:32]} 22. dxc5 {[%clk 0:02:09]}  Bxd5 {[%clk 0:01:31]} 23. Bc4 {[%clk 0:01:09]}  Bxc4 {[%clk 0:01:30]} 24. Qxc4 {[%clk 0:01:10]}  Bxc5 {[%clk 0:01:29]} 25. Rxe8 {[%clk 0:01:03]}  Qxe8 {[%clk 0:01:30]} 26. Qd3 {[%clk 0:01:00]}  Qd8 {[%clk 0:01:24]} 27. Qe4 {[%clk 0:00:55]}  Qb6 {[%clk 0:01:19]} 28. b4 {[%clk 0:00:42]}  Bxf2+ {[%clk 0:01:13]} 29. Kh1 {[%clk 0:00:42]}  Qe3 {[%clk 0:00:55]} 30. Qxb7 {[%clk 0:00:19]}  Rc1+ {[%clk 0:00:55]} 31. Rxc1 {[%clk 0:00:20]}  Qxc1+ {[%clk 0:00:55]} 32. Kh2 {[%clk 0:00:21]}  Qf4+ {[%clk 0:00:56]} 33. Kh1 {[%clk 0:00:21]}  Qc1+ {[%clk 0:00:51]} 34. Kh2 {[%clk 0:00:21]}  Qxa3 {[%clk 0:00:52]} 35. Qe4 {[%clk 0:00:20]}  Qc3 {[%clk 0:00:49]} 36. b5 {[%clk 0:00:19]}  Bb6 {[%clk 0:00:45]} 37. h4 {[%clk 0:00:17]}  Qe3 {[%clk 0:00:37]} 38. Qc4 {[%clk 0:00:11]}  h6 {[%clk 0:00:32]} 39. Kh3 {[%clk 0:00:08]}  Qc5 {[%clk 0:00:29]} 40. Qxc5 {[%clk 0:00:05]}  Bxc5 {[%clk 0:00:29]} 41. Kg4 {[%clk 0:00:06]}  f5+ {[%clk 0:00:26]} 42. Kf4 {[%clk 0:00:06]}  Kf6 {[%clk 0:00:27]} 43. Nd2 {[%clk 0:00:06]}  g5+ {[%clk 0:00:25]} 44. hxg5+ {[%clk 0:00:07]}  hxg5+ {[%clk 0:00:25]} 45. Kf3 {[%clk 0:00:08]}  g4+ {[%clk 0:00:16]} 46. Kf4 {[%clk 0:00:06]}  Bd6+ {[%clk 0:00:15]} 47. Ke3 {[%clk 0:00:07]}  Ke5 {[%clk 0:00:14]} 48. Kd3 {[%clk 0:00:06]}  Kd5 {[%clk 0:00:13]} 49. Nc4 {[%clk 0:00:06]}  Bc5 {[%clk 0:00:14]} 50. g3 {[%clk 0:00:02]}  Bf2 {[%clk 0:00:12]} 0-1


[Site "https://www.chess.com"]

[Event "Titled Tuesday Blitz December 13 Early 2022"]
[White "Ghosh, Chanchal Kumer"]
[Black "Krzywda, Andrzej"]
[WhiteFideId "10201858"]
[BlackFideId "1114565"]
[WhiteElo "2058"]
[BlackElo "2149"]
[Result "1-0"]
[Round "09"]
[TimeControl "180+1"]
[Date "2022.12.14"]
[WhiteClock "0:00:05"]
[BlackClock "0:00:08"]

1. e4 {[%clk 0:03:00]}  c6 {[%clk 0:02:58]} 2. Nf3 {[%clk 0:03:01]}  d5 {[%clk 0:02:58]} 3. Nc3 {[%clk 0:03:02]}  Bg4 {[%clk 0:02:52]} 4. e5 {[%clk 0:02:58]}  e6 {[%clk 0:02:50]} 5. d4 {[%clk 0:02:57]}  c5 {[%clk 0:02:49]} 6. Be2 {[%clk 0:02:44]}  Nc6 {[%clk 0:02:46]} 7. Be3 {[%clk 0:02:41]}  Qb6 {[%clk 0:02:42]} 8. dxc5 {[%clk 0:02:27]}  Bxc5 {[%clk 0:02:40]} 9. Bxc5 {[%clk 0:02:08]}  Qxc5 {[%clk 0:02:41]} 10. O-O {[%clk 0:02:02]}  Bxf3 {[%clk 0:02:34]} 11. Bxf3 {[%clk 0:02:00]}  Nxe5 {[%clk 0:02:33]} 12. Bxd5 {[%clk 0:01:52]}  exd5 {[%clk 0:02:28]} 13. Re1 {[%clk 0:01:52]}  f6 {[%clk 0:02:28]} 14. Nxd5 {[%clk 0:01:48]}  O-O-O {[%clk 0:02:22]} 15. c4 {[%clk 0:01:37]}  Ne7 {[%clk 0:02:14]} 16. Qa4 {[%clk 0:01:26]}  Nxd5 {[%clk 0:02:07]} 17. cxd5 {[%clk 0:01:24]}  Kb8 {[%clk 0:02:07]} 18. Rac1 {[%clk 0:01:02]}  Qxd5 {[%clk 0:02:06]} 19. h3 {[%clk 0:01:01]}  Rhe8 {[%clk 0:01:57]} 20. Red1 {[%clk 0:00:58]}  Qf7 {[%clk 0:01:51]} 21. Rf1 {[%clk 0:00:49]}  g5 {[%clk 0:01:40]} 22. Rc3 {[%clk 0:00:47]}  h5 {[%clk 0:01:28]} 23. f4 {[%clk 0:00:43]}  gxf4 {[%clk 0:01:16]} 24. Qxf4 {[%clk 0:00:44]}  Rd6 {[%clk 0:01:04]} 25. Rfc1 {[%clk 0:00:24]}  Qd5 {[%clk 0:01:03]} 26. Kh2 {[%clk 0:00:18]}  Rg8 {[%clk 0:00:52]} 27. Qf2 {[%clk 0:00:14]}  a6 {[%clk 0:00:44]} 28. R1c2 {[%clk 0:00:12]}  Qe4 {[%clk 0:00:38]} 29. Qf1 {[%clk 0:00:09]}  Rc6 {[%clk 0:00:29]} 30. Re2 {[%clk 0:00:08]}  Qd5 {[%clk 0:00:25]} 31. Rxc6 {[%clk 0:00:08]}  Qxc6 {[%clk 0:00:24]} 32. Qf5 {[%clk 0:00:08]}  Ka7 {[%clk 0:00:16]} 33. Qxh5 {[%clk 0:00:08]}  Qb5 {[%clk 0:00:11]} 34. Rf2 {[%clk 0:00:06]}  Qc5 {[%clk 0:00:08]} 35. Qf5 {[%clk 0:00:05]}  Rf8 {[%clk 0:00:07]} 36. a3 {[%clk 0:00:04]}  a5 {[%clk 0:00:07]} 37. b4 {[%clk 0:00:04]}  axb4 {[%clk 0:00:08]} 38. axb4 {[%clk 0:00:05]}  Qxb4 {[%clk 0:00:08]} 39. Ra2+ {[%clk 0:00:05]}  Kb8 {[%clk 0:00:09]} 40. Qf2 {[%clk 0:00:03]}  Qd6 {[%clk 0:00:02]} 41. Kh1 {[%clk 0:00:01]}  Kc7 {[%clk 0:00:03]} 42. Rc2+ {[%clk 0:00:01]}  Kb8 {[%clk 0:00:03]} 43. Rb2 {[%clk 0:00:02]}  Nd3 {[%clk 0:00:03]} 44. Qd2 {[%clk 0:00:01]}  Qd4 {[%clk 0:00:02]} 45. Rb3 {[%clk 0:00:01]}  Nf2+ {[%clk 0:00:02]} 46. Kh2 {[%clk 0:00:02]}  Ne4 {[%clk 0:00:03]} 47. Qxd4 {[%clk 0:00:01]}  Re8 {[%clk 0:00:02]} 48. Qe3 {[%clk 0:00:02]}  f5 {[%clk 0:00:02]} 49. Qf4+ {[%clk 0:00:02]}  Kc8 {[%clk 0:00:02]} 50. Re3 {[%clk 0:00:02]}  Kd7 {[%clk 0:00:02]} 51. g4 {[%clk 0:00:02]}  b5 {[%clk 0:00:02]} 52. gxf5 {[%clk 0:00:02]}  Rg8 {[%clk 0:00:03]} 53. Qxe4 {[%clk 0:00:02]}  b4 {[%clk 0:00:03]} 54. Qe6+ {[%clk 0:00:02]}  Kc7 {[%clk 0:00:04]} 55. Qxg8 {[%clk 0:00:03]}  Kb6 {[%clk 0:00:04]} 56. Qc4 {[%clk 0:00:03]}  Ka5 {[%clk 0:00:05]} 57. Re5+ {[%clk 0:00:04]}  Ka4 {[%clk 0:00:06]} 58. Rb5 {[%clk 0:00:04]}  Ka3 {[%clk 0:00:07]} 59. Qxb4+ {[%clk 0:00:04]}  Ka2 {[%clk 0:00:08]} 60. Qb2# {[%clk 0:00:05]} 1-0


[Site "https://www.chess.com"]

[Event "Titled Tuesday Blitz December 13 Early 2022"]
[White "Gonzalez, Francisco Silva"]
[Black "Hartikainen, Jarmo"]
[WhiteFideId "1512285"]
[BlackFideId "503134"]
[WhiteElo "2220"]
[BlackElo "2220"]
[Result "1-0"]
[Round "09"]
[TimeControl "180+1"]
[Date "2022.12.14"]
[WhiteClock "0:02:09"]
[BlackClock "0:00:15"]

1. d4 {[%clk 0:03:00]}  Nf6 {[%clk 0:02:59]} 2. c4 {[%clk 0:03:00]}  g6 {[%clk 0:02:59]} 3. Nc3 {[%clk 0:03:00]}  d5 {[%clk 0:02:59]} 4. Bf4 {[%clk 0:03:00]}  Bg7 {[%clk 0:02:58]} 5. Nf3 {[%clk 0:03:00]}  O-O {[%clk 0:02:58]} 6. e3 {[%clk 0:03:00]}  c5 {[%clk 0:02:58]} 7. dxc5 {[%clk 0:03:00]}  dxc4 {[%clk 0:02:48]} 8. Qxd8 {[%clk 0:02:58]}  Rxd8 {[%clk 0:02:47]} 9. Bxc4 {[%clk 0:02:58]}  Nbd7 {[%clk 0:02:35]} 10. Rd1 {[%clk 0:02:56]}  Rf8 {[%clk 0:02:24]} 11. b4 {[%clk 0:02:44]}  a5 {[%clk 0:02:16]} 12. a3 {[%clk 0:02:41]}  axb4 {[%clk 0:02:16]} 13. axb4 {[%clk 0:02:41]}  Nh5 {[%clk 0:01:26]} 14. Nd5 {[%clk 0:02:39]}  Nxf4 {[%clk 0:01:11]} 15. exf4 {[%clk 0:02:38]}  e6 {[%clk 0:01:08]} 16. Ne7+ {[%clk 0:02:38]}  Kh8 {[%clk 0:01:07]} 17. Nxc8 {[%clk 0:02:39]}  Bc3+ {[%clk 0:01:01]} 18. Ke2 {[%clk 0:02:36]}  Nxc5 {[%clk 0:00:41]} 19. Nb6 {[%clk 0:02:32]}  Ne4 {[%clk 0:00:19]} 20. Nxa8 {[%clk 0:02:31]}  Rxa8 {[%clk 0:00:19]} 21. Ke3 {[%clk 0:02:27]}  f5 {[%clk 0:00:19]} 22. Ng5 {[%clk 0:02:10]}  Ra3 {[%clk 0:00:17]} 23. Nxe4 {[%clk 0:02:09]}  Bxb4+ {[%clk 0:00:15]} 24. Rd3 {[%clk 0:02:09]} 1-0


[Site "https://www.chess.com"]